bitfinex/quotes_SOLUSD_20250624
["timestamp","ask_amount","ask_price","bid_price","bid_amount"]
[1750726392767,8.59254182,143.46,143.43,18.64964886]
[1750726392960,3.53777221,143.46,143.44,29.52]
[1750726393165,8.59254182,143.45,143.43,18.64964886]
[1750726393369,26.0,143.46,143.44,29.5]
[1750726393669,0.14216157,143.48,143.44,29.5]
[1750726394473,8.59254182,143.45,143.44,29.52]
[1750726394678,8.59254182,143.45,143.42,6.8]
[1750726394881,8.59254182,143.43,143.42,6.8]
[1750726395174,8.59254182,143.43,143.41,29.52]
[1750726395382,8.59254182,143.42,143.4,29.52]
[1750726395676,8.59254182,143.41,143.39,29.52]
[1750726395860,8.59254182,143.4,143.37,6.72]
[1750726396060,8.59254182,143.38,143.37,6.72]
[1750726396268,8.59254182,143.38,143.32,119.60529705]
[1750726396447,8.59254182,143.36,143.32,119.60529705]
[1750726396651,8.59254182,143.35,143.32,104.0355]
[1750726396852,8.59254182,143.35,143.33,29.52]
[1750726397073,26.0,143.38,143.34,18.64964886]
[1750726397273,8.59254182,143.35,143.34,48.16964886]
[1750726397483,8.59254182,143.35,143.32,8.2827]
[1750726397484,8.59254182,143.35,143.32,1.5627]
[1750726397661,26.14216157,143.39,143.33,48.16964886]
[1750726397866,8.59254182,143.34,143.33,48.16964886]
[1750726399256,26.14216157,143.39,143.33,48.16964886]
[1750726399464,8.59254182,143.35,143.33,48.16964886]
[1750726399665,8.59254182,143.37,143.33,63.73907175]
[1750726400056,8.59254182,143.39,143.36,18.64964886]
[1750726400370,8.59254182,143.39,143.38,18.64964886]
[1750726402874,8.59254182,143.39,143.37,29.52]
[1750726403077,8.59254182,143.38,143.37,48.16964886]
[1750726405182,8.59254182,143.38,143.37,29.52]
[1750726406169,8.59254182,143.38,143.37,48.16964886]
[1750726406486,8.59254182,143.41,143.38,18.64964886]
[1750726406670,26.0,143.43,143.39,29.46]
[1750726406871,0.14216157,143.39,143.34,29.46]
[1750726407072,8.59254182,143.36,143.34,48.10964886]
[1750726407278,8.59254182,143.36,143.35,18.64964886]
[1750726407961,8.59254182,143.36,143.34,29.5]
[1750726408183,8.59254182,143.35,143.34,29.5]
[1750726408377,5.74180533,143.35,143.34,29.5]
[1750726409186,5.74180533,143.35,143.33,48.14964886]
[1750726409685,5.74180533,143.36,143.33,55.12650092]
[1750726410183,5.74180533,143.37,143.33,55.12650092]
[1750726410792,5.74180533,143.36,143.33,55.12650092]
[1750726410991,5.74180533,143.36,143.33,48.14964886]
[1750726412374,26.14216157,143.41,143.33,55.1265357]
[1750726412581,5.74180533,143.36,143.33,55.1265357]
[1750726416388,5.74180533,143.36,143.33,48.14964886]
[1750726417300,5.74180533,143.36,143.33,55.12651778]
[1750726422800,26.0,143.38,143.33,55.12651778]
[1750726422801,5.74180533,143.35,143.33,48.14964886]
[1750726422980,5.74180533,143.34,143.33,48.14964886]
[1750726425310,5.74180533,143.34,143.33,48.10964886]
[1750726425888,5.74180533,143.35,143.33,48.10964886]
[1750726426713,5.74180533,143.35,143.33,18.64964886]
[1750726427005,0.14216157,143.4,143.34,48.10964886]
[1750726427306,5.74180533,143.35,143.34,48.10964886]
[1750726431407,5.74180533,143.36,143.35,18.64964886]
[1750726433226,31.74180533,143.37,143.35,18.64964886]
[1750726433521,5.74180533,143.37,143.36,29.46]
[1750726436315,26.0,143.41,143.36,48.10964886]
[1750726436613,5.74180533,143.37,143.36,48.10964886]
[1750726437201,26.0,143.41,143.37,18.64964886]
[1750726437408,26.0,143.41,143.34,5.74180533]
[1750726437409,26.0,143.41,143.38,29.44]
[1750726437608,5.74180533,143.39,143.37,29.44]
[1750726437812,5.74180533,143.38,143.37,29.44]
[1750726439428,5.74180533,143.38,143.37,48.08964886]
[1750726439723,5.74180533,143.39,143.38,18.64964886]
[1750726440931,5.74180533,143.4,143.38,18.64964886]
[1750726441230,5.74180533,143.41,143.39,48.08964886]
[1750726441799,26.0,143.42,143.39,48.08964886]
[1750726441800,31.74180533,143.42,143.39,48.08964886]
[1750726442130,5.74180533,143.41,143.39,48.08964886]
[1750726443229,26.0,143.42,143.39,48.08964886]
[1750726443527,5.74180533,143.41,143.39,48.08964886]
[1750726444623,5.74180533,143.4,143.39,48.08964886]
[1750726447329,5.74180533,143.4,143.39,29.44]
[1750726448632,26.0,143.42,143.4,18.64964886]
[1750726448811,5.74180533,143.41,143.4,18.64964886]
[1750726454037,31.74180533,143.41,143.4,18.64964886]
[1750726454954,31.74180533,143.41,143.38,29.44]
[1750726455136,5.74180533,143.39,143.38,48.08964886]
[1750726455327,5.74180533,143.39,143.38,18.64964886]
[1750726458341,5.74180533,143.39,143.38,48.06964886]
[1750726458927,5.74180533,143.39,143.38,18.64964886]
[1750726459125,5.74180533,143.39,143.38,48.06964886]
[1750726461454,26.0,143.41,143.38,48.06964886]
[1750726461961,5.74180533,143.43,143.39,27.2451433]
[1750726462260,26.0,143.45,143.4,29.42]
[1750726462447,5.74180533,143.43,143.4,29.42]
[1750726463131,5.74180533,143.42,143.4,29.42]
[1750726464141,5.74180533,143.41,143.4,29.42]
[1750726464342,5.74180533,143.41,143.4,48.06964886]
[1750726465640,26.0,143.45,143.41,18.64964886]
[1750726465841,5.74180533,143.42,143.41,18.64964886]
[1750726466261,26.0,143.45,143.41,18.64964886]
[1750726466567,5.74180533,143.42,143.39,20.27124886]
[1750726466741,5.74180533,143.42,143.41,18.64964886]
[1750726469760,5.74180533,143.43,143.41,18.64964886]
[1750726469966,5.74180533,143.43,143.42,48.06964886]
[1750726470845,5.74180533,143.47,143.43,18.64964886]
[1750726471050,5.74180533,143.44,143.43,18.64964886]
[1750726472156,5.74180533,143.45,143.43,18.64964886]
[1750726472370,5.74180533,143.45,143.44,29.4]
[1750726476873,26.0,143.43,143.42,48.04964886]
[1750726477074,31.74180533,143.43,143.42,48.04964886]
[1750726477759,5.74180533,143.43,143.42,18.64964886]
[1750726477970,5.74180533,143.43,143.42,48.04964886]
[1750726480154,5.74180533,143.44,143.43,18.64964886]
[1750726480568,31.74180533,143.45,143.43,18.64964886]
[1750726480787,31.74180533,143.45,143.44,48.04964886]
[1750726483580,31.74180533,143.45,143.44,29.4]
[1750726483886,31.74180533,143.45,143.42,29.38]
[1750726484190,5.74180533,143.43,143.42,29.38]
[1750726486488,5.74180533,143.43,143.41,89.4]
[1750726486691,26.0,143.41,143.35,8.272]
[1750726486995,5.74180533,143.36,143.35,6.64]
[1750726487165,5.74180533,143.36,143.35,36.02]
[1750726487365,5.74180533,143.36,143.35,54.66964886]
[1750726487791,5.74180533,143.36,143.35,25.28964886]
[1750726487996,5.74180533,143.36,143.35,6.64]
[1750726488189,5.74180533,143.36,143.33,18.64964886]
[1750726488386,5.74180533,143.34,143.31,18.64964886]
[1750726488574,26.0,143.37,143.33,29.38]
[1750726489378,26.14216157,143.39,143.31,18.64964886]
[1750726489583,26.0,143.37,143.33,29.38]
[1750726489895,5.74180533,143.34,143.33,48.02964886]
[1750726490694,26.0,143.38,143.33,18.64964886]
[1750726490874,5.74180533,143.34,143.33,18.64964886]
[1750726491766,5.74180533,143.34,143.32,29.4]
[1750726491969,5.74180533,143.33,143.32,48.04964886]
[1750726492494,5.74180533,143.33,143.32,18.64964886]
[1750726492684,5.74180533,143.33,143.32,48.02964886]
[1750726492878,5.74180533,143.33,143.3,6.64]
[1750726493200,26.0,143.35,143.31,29.38]
[1750726493793,26.0,143.35,143.31,18.64964886]
[1750726493986,26.0,143.35,143.3,6.64]
[1750726494174,5.74180533,143.31,143.3,6.64]
[1750726494376,5.74180533,143.31,143.3,54.66964886]
[1750726495995,5.74180533,143.31,143.3,25.28964886]
[1750726496177,5.74180533,143.31,143.3,54.68964886]
[1750726496377,5.74180533,143.31,143.3,54.66964886]
[1750726499381,5.74180533,143.31,143.25,1.5171]
[1750726499593,5.74180533,143.29,143.26,48.02964886]
[1750726500397,5.74180533,143.28,143.26,48.02964886]
[1750726500599,5.74180533,143.29,143.27,29.38]
[1750726500784,5.74180533,143.28,143.26,18.64964886]
[1750726501098,5.74180533,143.28,143.27,48.02964886]
[1750726501693,26.0,143.33,143.28,18.64964886]
[1750726501998,5.74180533,143.31,143.3,18.64964886]
[1750726503002,5.74180533,143.31,143.29,29.38]
[1750726503179,5.74180533,143.3,143.27,18.64964886]
[1750726503377,5.74180533,143.28,143.26,18.64964886]
[1750726503573,5.74180533,143.28,143.27,29.38]
[1750726504380,5.74180533,143.29,143.28,18.64964886]
[1750726506508,5.74180533,143.3,143.28,18.64964886]
[1750726506691,5.74180533,143.3,143.29,29.38]
[1750726506889,26.0,143.33,143.29,48.02964886]
[1750726507090,13.72400295,143.37,143.32,18.64964886]
[1750726507277,13.72400295,143.37,143.34,18.64964886]
[1750726507485,13.72400295,143.37,143.36,18.64964886]
[1750726507680,5.74180533,143.44,143.36,18.64964886]
[1750726507901,26.0,143.4,143.37,29.38]
[1750726508209,6.1665,143.46,143.37,29.38]
[1750726508382,5.74180533,143.41,143.37,29.38]
[1750726508701,5.74180533,143.42,143.38,18.64964886]
[1750726508907,31.74180533,143.42,143.4,18.64964886]
[1750726509095,5.74180533,143.41,143.4,18.64964886]
[1750726509406,31.74180533,143.42,143.4,29.38]
[1750726509610,26.0,143.42,143.4,29.38]
[1750726509790,31.74180533,143.42,143.4,29.38]
[1750726510307,6.42679254,143.48,143.4,29.38]
[1750726510509,5.74180533,143.43,143.41,18.64964886]
[1750726510710,5.74180533,143.43,143.42,48.02964886]
[1750726512096,26.0,143.46,143.42,48.02964886]
[1750726512307,5.74180533,143.43,143.42,48.02964886]
[1750726515711,26.0,143.46,143.43,18.64964886]
[1750726515921,26.0,143.46,143.44,29.36]
[1750726517007,5.74180533,143.45,143.44,29.36]
[1750726518618,26.0,143.47,143.44,29.36]
[1750726518820,5.74180533,143.45,143.44,48.00964886]
[1750726519121,5.74180533,143.46,143.45,18.64964886]
[1750726519428,31.74180533,143.47,143.45,48.00964886]
[1750726520808,5.74180533,143.46,143.45,48.00964886]
[1750726521121,26.0,143.47,143.45,48.00964886]
[1750726521301,31.74180533,143.47,143.45,48.00964886]
[1750726521701,13.79028539,143.5,143.45,48.00964886]
[1750726521895,5.74180533,143.49,143.45,60.72244258]
[1750726522211,19.53209072,143.5,143.45,60.72244258]
[1750726522817,13.79028539,143.5,143.47,24.39145419]
[1750726522998,3.50069025,143.55,143.48,29.34]
[1750726523198,5.74180533,143.51,143.48,35.96]
[1750726523622,5.74180533,143.5,143.48,35.96]
[1750726523825,5.74180533,143.5,143.48,54.60964886]
[1750726525334,26.14216157,143.55,143.48,61.57924767]
[1750726525520,5.74180533,143.5,143.48,54.60964886]
[1750726526418,5.74180533,143.51,143.48,54.60964886]
[1750726526932,5.74180533,143.54,143.49,25.99105419]
[1750726527127,5.74180533,143.54,143.5,29.34]
[1750726528319,5.74180533,143.54,143.5,36.30851336]
[1750726529833,26.0,143.57,143.51,25.61756881]
[1750726530134,5.74180533,143.54,143.53,18.64964886]
[1750726530907,26.0,143.57,143.53,18.64964886]
[1750726531126,0.14216157,143.58,143.54,29.32]
[1750726531426,5.74180533,143.55,143.54,47.96964886]
[1750726531733,5.74180533,143.56,143.55,18.64964886]
[1750726531920,31.74180533,143.57,143.55,47.96964886]
[1750726532428,5.74180533,143.57,143.55,47.96964886]
[1750726533002,5.74180533,143.56,143.55,29.32]
[1750726537339,26.0,143.58,143.56,18.64964886]
[1750726537513,5.74180533,143.57,143.56,18.64964886]
[1750726540344,31.74180533,143.57,143.55,29.32]
[1750726540541,5.74180533,143.56,143.55,47.96964886]
[1750726542144,26.0,143.57,143.55,47.96964886]
[1750726542319,5.74180533,143.56,143.55,47.96964886]
[1750726544023,26.0,143.57,143.55,47.96964886]
[1750726544238,5.74180533,143.56,143.55,47.96964886]
[1750726544744,5.74180533,143.56,143.55,29.32]
[1750726546452,26.0,143.57,143.56,18.64964886]
[1750726546627,14.82670307,143.62,143.56,18.64964886]
[1750726546628,5.74180533,143.59,143.56,18.64964886]
[1750726546940,5.74180533,143.6,143.58,18.64964886]
[1750726547130,5.74180533,143.6,143.59,47.94964886]
[1750726548121,26.0,143.65,143.6,18.64964886]
[1750726548440,0.14216157,143.66,143.61,29.3]
[1750726548626,26.0,143.65,143.61,29.3]
[1750726549228,1.68011303,143.66,143.62,18.64964886]
[1750726549547,26.0,143.65,143.63,29.3]
[1750726550325,1.68011303,143.66,143.63,29.3]
[1750726550526,3.24091303,143.71,143.64,18.64964886]
[1750726550833,5.74180533,143.66,143.65,47.94964886]
[1750726551034,1.68011303,143.71,143.65,47.94964886]
[1750726551237,5.74180533,143.66,143.65,47.94964886]
[1750726552138,1.68011303,143.71,143.65,47.94964886]
[1750726552341,26.0,143.69,143.65,29.3]
[1750726552529,5.74180533,143.67,143.65,29.3]
[1750726552728,5.74180533,143.66,143.65,47.94964886]
[1750726552922,5.74180533,143.66,143.65,29.3]
[1750726553432,26.0,143.69,143.65,29.3]
[1750726553626,26.0,143.69,143.65,47.94964886]
[1750726554039,5.74180533,143.66,143.65,47.94964886]
[1750726555064,5.74180533,143.66,143.65,29.3]
[1750726555928,5.74180533,143.66,143.65,47.94964886]
[1750726556138,5.74180533,143.67,143.66,18.64964886]
[1750726556462,5.74180533,143.67,143.66,47.92964886]
[1750726558530,5.74180533,143.68,143.66,47.92964886]
[1750726558736,26.0,143.71,143.66,47.92964886]
[1750726558961,5.74180533,143.67,143.66,54.50964886]
[1750726559334,13.87800887,143.74,143.66,54.50964886]
[1750726559335,5.74180533,143.68,143.66,61.47052871]
[1750726559935,5.74180533,143.67,143.66,61.47052871]
[1750726560345,5.74180533,143.67,143.66,54.50964886]
[1750726560846,5.74180533,143.67,143.66,35.86]
[1750726561333,5.74180533,143.67,143.66,54.50964886]
[1750726561751,26.0,143.72,143.67,18.64964886]
[1750726562059,11.48361066,143.68,143.67,18.64964886]
[1750726562256,11.48361066,143.68,143.67,47.90964886]
[1750726566957,5.74180533,143.68,143.67,47.90964886]
[1750726567347,5.74180533,143.68,143.67,62.54730578]
[1750726568266,26.0,143.74,143.67,62.54730578]
[1750726568470,5.74180533,143.68,143.67,62.54730578]
[1750726568672,5.74180533,143.68,143.67,49.43234886]
[1750726568969,26.0,143.73,143.67,49.43234886]
[1750726569147,9.22294766,143.76,143.67,56.53487926]
[1750726569148,26.0,143.75,143.67,56.53487926]
[1750726569352,26.0,143.75,143.68,0.14216157]
[1750726569572,26.0,143.75,143.7,18.64964886]
[1750726569750,26.0,143.75,143.71,29.24]
[1750726570072,26.0,143.75,143.72,18.64964886]
[1750726570242,26.0,143.75,143.67,8.48306883]
[1750726570243,5.74180533,143.76,143.74,18.64964886]
[1750726570441,5.74180533,143.76,143.75,29.24]
[1750726570679,11.48361066,143.76,143.75,29.24]
[1750726570851,11.48361066,143.76,143.75,47.88964886]
[1750726571182,5.74180533,143.84,143.77,0.14216157]
[1750726571468,5.74180533,143.82,143.8,18.79181043]
[1750726571645,9.8734579,143.92,143.82,18.64964886]
[1750726571974,9.8734579,143.92,143.81,29.24]
[1750726571975,26.0,143.89,143.83,29.24]
[1750726572143,26.0,143.89,143.84,29.24]
[1750726572343,8.56908393,143.92,143.78,1.5684]
[1750726572543,26.14216157,143.89,143.79,54.46964886]
[1750726572765,0.14216157,143.87,143.79,54.46964886]
[1750726572985,5.74180533,143.8,143.79,54.46964886]
[1750726573956,5.74180533,143.84,143.79,54.46964886]
[1750726574148,5.74180533,143.8,143.79,54.46964886]
[1750726574351,5.74180533,143.8,143.79,48.03181043]
[1750726574764,5.74180533,143.8,143.79,47.88964886]
[1750726575080,5.74180533,143.84,143.79,47.88964886]
[1750726575376,5.74180533,143.8,143.79,47.88964886]
[1750726577253,5.74180533,143.84,143.79,47.88964886]
[1750726577458,5.74180533,143.8,143.79,47.88964886]
[1750726578959,26.0,143.85,143.79,47.88964886]
[1750726579165,5.74180533,143.8,143.79,54.8442354]
[1750726579498,5.74180533,143.81,143.79,54.98639697]
[1750726579874,5.74180533,143.8,143.79,54.98639697]
[1750726580114,5.74180533,143.84,143.79,54.98639697]
[1750726580288,5.74180533,143.81,143.79,54.98639697]
[1750726580990,5.74180533,143.8,143.79,54.98639697]
[1750726581783,5.74180533,143.8,143.79,48.03181043]
[1750726582468,5.74180533,143.8,143.79,54.98639697]
[1750726582989,5.74180533,143.8,143.79,47.88964886]
[1750726585491,0.14216157,143.87,143.79,47.88964886]
[1750726585678,5.74180533,143.8,143.79,47.88964886]
[1750726586389,5.74180533,143.81,143.79,54.8442354]
[1750726588587,10.905119,143.92,143.8,0.14216157]
[1750726588782,5.74180533,143.83,143.82,18.64964886]
[1750726588961,5.74180533,143.84,143.82,25.20964886]
[1750726589162,5.74180533,143.86,143.83,29.2]
[1750726589388,5.74180533,143.85,143.83,29.2]
[1750726589580,5.74180533,143.85,143.83,36.15256703]
[1750726590486,5.74180533,143.86,143.83,36.15256703]
[1750726591190,31.74180533,143.92,143.84,18.64964886]
[1750726591390,26.0,143.92,143.85,29.2]
[1750726591691,5.74180533,143.86,143.85,47.84964886]
[1750726591896,5.74180533,143.86,143.85,29.2]
[1750726592091,11.48361066,143.86,143.84,29.2]
[1750726592281,11.48361066,143.85,143.84,29.2]
[1750726595082,11.48361066,143.85,143.82,6.56]
[1750726595281,31.74180533,143.83,143.78,18.64964886]
[1750726595474,5.74180533,143.79,143.78,18.64964886]
[1750726595879,5.74180533,143.79,143.76,8.1917]
[1750726596198,5.74180533,143.77,143.76,26.84134886]
[1750726596696,5.74180533,143.77,143.76,33.7973867]
[1750726596997,26.0,143.83,143.77,18.64964886]
[1750726596998,5.74180533,143.78,143.77,18.64964886]
[1750726597170,5.74180533,143.79,143.77,18.64964886]
[1750726597371,5.74180533,143.79,143.77,18.79181043]
[1750726597789,5.74180533,143.79,143.78,25.6047191]
[1750726598370,8.55736637,143.79,143.78,25.6047191]
[1750726598569,26.0,143.85,143.78,25.6047191]
[1750726598794,26.0,143.86,143.78,25.6047191]
[1750726599097,8.55736637,143.79,143.78,25.6047191]
[1750726599488,8.55736637,143.8,143.79,18.64964886]
[1750726600503,8.55736637,143.81,143.78,6.95507024]
[1750726601193,26.0,143.85,143.78,6.95507024]
[1750726601377,8.55736637,143.8,143.78,6.95507024]
[1750726602780,26.0,143.85,143.78,6.95507024]
[1750726602996,8.55736637,143.8,143.78,6.95507024]
[1750726603295,8.55736637,143.81,143.79,0.14216157]
[1750726603681,8.55736637,143.82,143.79,0.14216157]
[1750726604089,8.55736637,143.83,143.79,18.79181043]
[1750726604488,11.27470743,143.96,143.83,18.79181043]
[1750726604692,8.55736637,143.86,143.85,18.64964886]
[1750726605699,8.55736637,143.86,143.85,25.60133464]
[1750726605897,8.55736637,143.86,143.85,18.64964886]
[1750726606101,8.55736637,143.86,143.84,6.54]
[1750726606305,8.55736637,143.85,143.84,6.54]
[1750726607305,8.55736637,143.85,143.79,32.14421322]
[1750726607616,8.55736637,143.8,143.79,32.14421322]
[1750726608199,8.55736637,143.8,143.79,25.18964886]
[1750726609183,8.55736637,143.8,143.73,1.6216]
[1750726609404,8.55736637,143.75,143.74,6.54]
[1750726609609,8.55736637,143.76,143.75,18.64964886]
[1750726609787,20.05430425,143.82,143.75,18.64964886]
[1750726609985,8.55736637,143.76,143.75,18.64964886]
[1750726610413,8.55736637,143.76,143.74,6.54]
[1750726610599,8.55736637,143.75,143.74,6.54]
[1750726611590,17.11473274,143.75,143.67,6.54]
[1750726611794,8.55736637,143.68,143.67,25.18964886]
[1750726612289,8.55736637,143.73,143.67,25.18964886]
[1750726612984,8.55736637,143.73,143.67,32.1497123]
[1750726613187,5.23439945,143.76,143.67,32.1497123]
[1750726613404,8.55736637,143.69,143.67,32.1497123]
[1750726613994,8.55736637,143.73,143.67,32.1497123]
[1750726614494,8.55736637,143.73,143.68,18.64964886]
[1750726614801,8.55736637,143.73,143.67,6.54]
[1750726615113,8.55736637,143.68,143.67,6.54]
[1750726615329,26.0,143.72,143.68,18.64964886]
[1750726615519,8.55736637,143.69,143.68,18.64964886]
[1750726615896,8.55736637,143.69,143.67,6.54]
[1750726616095,26.0,143.72,143.67,6.54]
[1750726616303,8.55736637,143.68,143.67,6.54]
[1750726617647,8.55736637,143.68,143.67,13.50039535]
[1750726620732,8.55736637,143.68,143.67,6.54]
[1750726621810,8.55736637,143.68,143.62,32.15213429]
[1750726622033,8.55736637,143.63,143.62,32.15213429]
[1750726622236,8.55736637,143.63,143.62,25.18964886]
[1750726623305,8.55736637,143.64,143.63,6.96233377]
[1750726624141,8.55736637,143.64,143.62,25.18964886]
[1750726624337,8.55736637,143.63,143.62,25.18964886]
[1750726625174,8.55736637,143.63,143.62,32.1524674]
[1750726626837,8.55736637,143.64,143.62,32.1524674]
[1750726628136,8.55736637,143.63,143.62,32.1524674]
[1750726628312,8.55736637,143.63,143.62,25.18964886]
[1750726629357,8.55736637,143.63,143.62,6.54]
[1750726630356,5.71921406,143.63,143.62,6.54]
[1750726632623,5.71921406,143.64,143.62,6.54]
[1750726632856,5.71921406,143.68,143.62,6.54]
[1750726632857,5.71921406,143.63,143.62,6.54]
[1750726633233,5.71921406,143.63,143.59,18.64964886]
[1750726633428,5.71921406,143.6,143.59,18.64964886]
[1750726635233,5.71921406,143.6,143.58,18.64964886]
[1750726635442,5.71921406,143.59,143.58,18.64964886]
[1750726637062,5.71921406,143.59,143.57,6.56]
[1750726637259,5.71921406,143.58,143.57,6.56]
[1750726638452,5.71921406,143.58,143.51,52.10804745]
[1750726638642,26.0,143.57,143.52,18.64964886]
[1750726638875,26.0,143.57,143.5,6.54]
[1750726638876,5.71921406,143.53,143.5,6.54]
[1750726639173,5.71921406,143.52,143.5,13.50854819]
[1750726639467,5.71921406,143.52,143.51,18.64964886]
[1750726640273,26.0,143.57,143.51,18.64964886]
[1750726640464,5.71921406,143.53,143.51,18.64964886]
[1750726640771,5.71921406,143.55,143.54,18.64964886]
[1750726640985,5.71921406,143.56,143.54,18.64964886]
[1750726641356,5.71921406,143.57,143.54,18.64964886]
[1750726641669,26.0,143.6,143.54,18.64964886]
[1750726641883,5.71921406,143.57,143.54,20.25974886]
[1750726642265,3.48799804,143.65,143.56,18.64964886]
[1750726642266,6.0818,143.65,143.56,18.64964886]
[1750726642459,5.71921406,143.59,143.57,6.54]
[1750726642845,5.71921406,143.59,143.57,13.50518974]
[1750726643070,5.71921406,143.58,143.57,25.18964886]
[1750726644344,43.16934122,143.58,143.46,11.15378506]
[1750726644560,43.16934122,143.58,143.47,6.54]
[1750726644561,8.58467061,143.48,143.47,6.54]
[1750726645344,8.58467061,143.48,143.42,14.6534]
[1750726645542,34.58467061,143.55,143.44,26.0]
[1750726645543,8.58467061,143.46,143.44,26.0]
[1750726646270,26.0,143.52,143.45,18.64964886]
[1750726646576,8.58467061,143.48,143.45,18.64964886]
[1750726646946,8.58467061,143.47,143.45,18.64964886]
[1750726647443,8.58467061,143.46,143.42,6.54]
[1750726647765,8.58467061,143.46,143.38,51.6962]
[1750726647766,8.58467061,143.43,143.38,53.2574]
[1750726648073,8.58467061,143.39,143.38,72.04921043]
[1750726648251,8.58467061,143.39,143.38,46.7212]
[1750726648575,8.58467061,143.39,143.37,6.54]
[1750726648874,8.58467061,143.38,143.37,25.18964886]
[1750726649172,8.58467061,143.39,143.38,18.64964886]
[1750726649370,8.58467061,143.39,143.37,6.54]
[1750726652263,26.0,143.43,143.37,25.18964886]
[1750726652566,8.58467061,143.39,143.37,25.18964886]
[1750726652969,8.58467061,143.39,143.37,32.16456236]
[1750726653352,8.58467061,143.41,143.38,18.79181043]
[1750726653554,37.2525,143.51,143.38,27.37648104]
[1750726653773,8.58467061,143.42,143.38,27.37648104]
[1750726654350,8.58467061,143.42,143.4,18.79181043]
[1750726654576,8.58467061,143.43,143.4,18.79181043]
[1750726655474,8.58467061,143.43,143.4,7.11563247]
[1750726656774,8.58467061,143.44,143.4,7.11563247]
[1750726656968,8.58467061,143.43,143.4,7.11563247]
[1750726657777,8.58467061,143.44,143.4,7.11563247]
[1750726658075,8.58467061,143.44,143.42,18.79181043]
[1750726658448,26.0,143.48,143.42,18.79181043]
[1750726658654,8.58467061,143.44,143.42,18.79181043]
[1750726658855,8.58467061,143.45,143.42,18.79181043]
[1750726659072,8.58467061,143.46,143.44,18.64964886]
[1750726660188,8.58467061,143.46,143.44,25.62116141]
[1750726661864,8.58467061,143.46,143.44,18.64964886]
[1750726663785,8.58467061,143.45,143.44,18.64964886]
[1750726666679,8.58467061,143.46,143.44,18.64964886]
[1750726666986,8.58467061,143.45,143.44,18.64964886]
[1750726670471,32.1413,143.51,143.44,25.62115191]
[1750726670671,8.58467061,143.46,143.44,25.62115191]
[1750726670974,8.58467061,143.45,143.44,25.62115191]
[1750726671179,8.58467061,143.45,143.44,18.64964886]
[1750726671575,8.58467061,143.46,143.44,18.64964886]
[1750726672669,8.58467061,143.45,143.44,18.64964886]
[1750726674880,26.0,143.48,143.44,18.64964886]
[1750726675085,8.58467061,143.46,143.44,18.64964886]
[1750726676183,8.58467061,143.45,143.44,18.64964886]
[1750726680388,5.73310363,143.45,143.44,18.64964886]
[1750726680775,26.0,143.42,143.38,18.64964886]
[1750726680975,5.73310363,143.39,143.37,6.68]
[1750726681279,5.73310363,143.38,143.37,6.68]
[1750726682404,8.61049943,143.38,143.31,6.1285]
[1750726682605,26.0,143.4,143.31,12.8085]
[1750726682606,8.61049943,143.33,143.31,12.8085]
[1750726682779,8.61049943,143.32,143.31,6.68]
[1750726683103,5.09460951,143.41,143.32,18.64964886]
[1750726683104,8.61049943,143.34,143.32,18.64964886]
[1750726683275,8.61049943,143.33,143.32,18.64964886]
[1750726684075,8.61049943,143.34,143.32,18.64964886]
[1750726684812,26.0,143.38,143.32,25.62688138]
[1750726684991,8.61049943,143.35,143.32,25.62688138]
[1750726686009,8.61049943,143.34,143.32,25.62688138]
[1750726686185,26.0,143.39,143.33,0.14216157]
[1750726686381,8.61049943,143.35,143.33,0.14216157]
[1750726687186,8.61049943,143.34,143.32,18.64964886]
[1750726687513,8.61049943,143.33,143.32,18.64964886]
[1750726689302,11.19934497,143.38,143.32,18.79181043]
[1750726689303,6.0991,143.38,143.32,18.79181043]
[1750726689481,26.0,143.39,143.32,18.79181043]
[1750726689482,8.61049943,143.37,143.33,0.14216157]
[1750726689999,8.61049943,143.38,143.35,0.14216157]
[1750726690385,8.61049943,143.37,143.35,0.14216157]
[1750726693007,8.61049943,143.38,143.35,7.11808783]
[1750726693213,8.61049943,143.38,143.36,18.64964886]
[1750726694294,8.61049943,143.39,143.36,25.6249961]
[1750726694514,36.9505,143.45,143.36,25.6249961]
[1750726694515,8.61049943,143.41,143.38,18.64964886]
[1750726694684,8.61049943,143.46,143.38,18.64964886]
[1750726694685,8.61049943,143.42,143.39,0.14216157]
[1750726695086,8.61049943,143.42,143.39,7.11610726]
[1750726695485,8.61049943,143.43,143.39,7.11610726]
[1750726696586,8.61049943,143.44,143.4,27.26014829]
[1750726696785,8.61049943,143.44,143.41,0.14216157]